Workbook

Sheet Лист1
A3: Места | B3: призы | C3: Велью | D3: игроки | E3: блайндов | H3: Вероятность закончить 2м 2му игроку
A4: 1 | B4: 650 | C4: =C14*B4 -> 156.492891 | D4: 1 | E4: =66.9 -> 66.9 | H4: если 1е место займет | I4: доля фишек игрока | J4: Общая вероятность
A5: 2 | B5: 450 | C5: =B5*D14 -> 202.3094519 | D5: 2 | E5: =25.4 -> 25.4 | H5: 1й | I5: =$E$5/($E$8-E4) -> 0.6580310881 | J5: =$C$13*I5 -> 0.4172727942
A6: 3 | B6: 256 | C6: =B6*E14 -> 43.11759602 | D6: 3 | E6: 8.4 | H6: 3й | I6: =$E$5/($E$8-E6) -> 0.2615859938 | J6: =C15*I6 -> 0.02082769998
D7: 4 | E7: 4.8 | H7: 4й | I7: =$E$5/($E$8-E7) -> 0.2522343595 | J7: =C16*I7 -> 0.01147606564
A8: Ожидание $ | C8: =SUM(C4:C7) -> 401.919939 | E8: =SUM(E4:E7) -> 105.5 | I8: Итог | J8: =SUM(J5:J7) -> 0.4495765599
B9: 401.919939 | C9: 514.6208585
A10: Вероятности закончить турнир на определенном месте | H10: Вероятность закончить 2м 1му игроку
H11: если 1е место займет | I11: доля фишек игрока | J11: Общая вероятность
B12: стек | C12: 1е место | D12: 2е место | E12: 3е место | F12: 4е место | H12: 2й | I12: =$E$4/($E$8-E5) -> 0.8352059925 | J12: =C14*I12 -> 0.2010827698
A13: Игрок 1 | B13: =E4 -> 66.9 | C13: =B13/$E$8 -> 0.6341232227 | D13: =J15 -> 0.2861663099 | H13: 3й | I13: =$E$4/($E$8-E6) -> 0.6889804325 | J13: =C15*I13 -> 0.05485720979
A14: Игрок 2 | B14: =E5 -> 25.4 | C14: =B14/$E$8 -> 0.2407582938 | D14: =J8 -> 0.4495765599 | E14: =J39 -> 0.1684281094 | F14: =100%-C14-D14-E14 -> 0.1412370368 | H14: 4й | I14: =$E$4/($E$8-E7) -> 0.6643495531 | J14: 0.03022633038
A15: Игрок 3 | B15: 8.4 | C15: 0.07962085308 | D15: =J22 -> 0.1670390223 | I15: Итог | J15: =SUM(J12:J14) -> 0.2861663099
A16: Игрок 4 | B16: 4.8 | C16: 0.04549763033 | D16: =J29 -> 0.09690472472
H17: Вероятность закончить 2м 3му игроку
H18: если 1е место займет | I18: доля фишек игрока | J18: Общая вероятность
A19: Ожидание $ при отказе от заруба | D19: =B9 -> 401.919939 | F19: формула | H19: 2й | I19: =E6/($E$8-E5) -> 0.1048689139 | J19: =C14*I19 -> 0.02524806078
A20: Ожидание $ при игре на стек при шансах 80% на победу | F20: =0.8*D25-0.2*D24 -> 331.312699 | H20: 1й | I20: =E6/($E$8-E4) -> 0.2176165803 | J20: =C13*I20 -> 0.1379957272
H21: 4й | I21: =E6/($E$8-E7) -> 0.08341608739 | J21: =C16*I21 -> 0.003795234308
A22: Эит | I22: Итог | J22: =SUM(J19:J21) -> 0.1670390223
A24: ожидание при фолде | D24: =B9 -> 401.919939 | H24: Вероятность закончить 2м 4му игроку
A25: ожидание при оллине и победе | D25: =C9 -> 514.6208585 | H25: если 1е место займет | I25: доля фишек игрока | J25: Общая вероятность
H26: 2й | I26: =B16/($E$8-B14) -> 0.05992509363 | J26: =C14*I26 -> 0.0144274633
H27: 1й | I27: =B16/($E$8-B13) -> 0.1243523316 | J27: =C13*I27 -> 0.07885470127
H28: 3й | I28: =B16/($E$8-E21) -> 0.04549763033 | J28: =C15*I28 -> 0.00362256014
I29: Итог | J29: =SUM(J26:J28) -> 0.09690472472
H31: Вероятность закончить 3м 2му игроку
H32: если 1и2 место займут | I32: доля фишек игрока | J32: Общая вероятность
H33: 1и3 | I33: =$B$14/(E$8-B$13-B$15) -> 0.8410596026 | J33: =C13*D15*I33 -> 0.08908782808
H34: 3и1 | I34: =$B$14/(E$8-B$13-B$15) -> 0.8410596026 | J34: =C15*D13*I34 -> 0.01916337965
H35: 1и4 | I35: =B$14/(E$8-B$13-B$16) -> 0.7514792899 | J35: =C13*D16*I35 -> 0.04617805393
H36: 4и1 | I36: =B$14/(E$8-B$13-B$16) -> 0.7514792899 | J36: =C16*D13*I36 -> 0.009784176928
H37: 3и4 | I37: =B$14/(E$8-B$15-B$16) -> 0.2751895991 | J37: =C15*D16*I37 -> 0.002123263012
H38: 4и3 | I38: =B$14/(E$8-B$15-B$16) -> 0.2751895991 | J38: =C16*D15*I38 -> 0.002091407845
I39: Итог | J39: =SUM(J33:J38) -> 0.1684281094

Sheet Лист2

Sheet Лист3
